[Event "*** Titled Tuesday 3|2 Blitz"]
[Site "Chess.com"]
[Date "2017.05.02"]
[Round "7"]
[White "Vamostodorecto"]
[Black "1lec"]
[Result "1-0"]
[WhiteElo "2334"]
[BlackElo "2057"]
[TimeControl "180+2"]
[EndTime "14:32:55 PDT"]
[Termination "Vamostodorecto won by resignation"]

1. d4 {[%clk 0:03:02]} 1... Nf6 {[%clk 0:03:00.7]} 2. c4 {[%clk 0:02:58.4]} 2...
g6 {[%clk 0:03:01.9]} 3. Nc3 {[%clk 0:02:58.2]} 3... d5 {[%clk 0:03:02.8]} 4.
Bg5 {[%clk 0:02:57.7]} 4... Bg7 {[%clk 0:03:03.8]} 5. Bxf6 {[%clk 0:02:56.4]}
5... Bxf6 {[%clk 0:03:05.8]} 6. cxd5 {[%clk 0:02:57.3]} 6... c5 {[%clk
0:03:07.1]} 7. Nf3 {[%clk 0:02:56.8]} 7... cxd4 {[%clk 0:02:57.6]} 8. Nxd4
{[%clk 0:02:58.7]} 8... O-O {[%clk 0:02:58.2]} 9. Nb3 {[%clk 0:02:54.5]} 9...
Bf5 {[%clk 0:02:52.1]} 10. e3 {[%clk 0:02:50.8]} 10... Nd7 {[%clk 0:02:39.3]}
11. Bd3 {[%clk 0:02:46.6]} 11... Bxd3 {[%clk 0:02:36.2]} 12. Qxd3 {[%clk
0:02:48.5]} 12... Ne5 {[%clk 0:02:31.5]} 13. Qe2 {[%clk 0:02:47.6]} 13... Rc8
{[%clk 0:02:30.1]} 14. O-O {[%clk 0:02:44.6]} 14... Nc4 {[%clk 0:02:29]} 15. Nd4
{[%clk 0:02:40.8]} 15... Qb6 {[%clk 0:02:11]} 16. Na4 {[%clk 0:02:27.9]} 16...
Qa5 {[%clk 0:02:04.5]} 17. b3 {[%clk 0:02:16.6]} 17... Nd6 {[%clk 0:01:51.7]}
18. Rad1 {[%clk 0:02:06.5]} 18... Qxd5 {[%clk 0:01:48.2]} 19. Rd3 {[%clk
0:01:43.1]} 19... Qa5 {[%clk 0:01:16.5]} 20. Qd2 {[%clk 0:01:29.8]} 20... Qxd2
{[%clk 0:01:12.2]} 21. Rxd2 {[%clk 0:01:31.7]} 21... Ne4 {[%clk 0:01:12.1]} 22.
Rd3 {[%clk 0:01:27.2]} 22... a6 {[%clk 0:00:56.6]} 23. Nb6 {[%clk 0:01:25.1]}
23... Rcd8 {[%clk 0:00:50.6]} 24. Rfd1 {[%clk 0:01:17.4]} 24... Nc5 {[%clk
0:00:22.2]} 25. R3d2 {[%clk 0:01:12.1]} 25... e5 {[%clk 0:00:19.7]} 26. Nf3
{[%clk 0:01:09.9]} 26... e4 {[%clk 0:00:19.1]} 27. Nd4 {[%clk 0:00:56.3]} 27...
Nd7 {[%clk 0:00:11.9]} 28. Ne6 {[%clk 0:00:49.7]} 28... fxe6 {[%clk 0:00:13]}
29. Nxd7 {[%clk 0:00:44.7]} 1-0

[Event "*** Titled Tuesday 3|2 Blitz"]
[Site "Chess.com"]
[Date "2017.05.02"]
[Round "7"]
[White "olgerts_indricans"]
[Black "Saitama_Hero"]
[Result "1-0"]
[WhiteElo "2257"]
[BlackElo "2262"]
[TimeControl "180+2"]
[EndTime "14:33:40 PDT"]
[Termination "olgerts_indricans won by resignation"]

1. e4 {[%clk 0:03:02]} 1... c5 {[%clk 0:02:59.8]} 2. Nf3 {[%clk 0:03:02.5]} 2...
g6 {[%clk 0:03:01.7]} 3. d4 {[%clk 0:03:03.2]} 3... cxd4 {[%clk 0:03:03.6]} 4.
Qxd4 {[%clk 0:03:04]} 4... Nf6 {[%clk 0:03:04.6]} 5. Nc3 {[%clk 0:03:04.7]} 5...
Nc6 {[%clk 0:03:06]} 6. Qa4 {[%clk 0:03:05.2]} 6... d6 {[%clk 0:03:07.4]} 7. e5
{[%clk 0:03:06.2]} 7... dxe5 {[%clk 0:03:08.9]} 8. Nxe5 {[%clk 0:03:08.1]} 8...
Qd4 {[%clk 0:03:09.4]} 9. Nxc6 {[%clk 0:03:07.9]} 9... Qxa4 {[%clk 0:03:10.8]}
10. Nxa4 {[%clk 0:03:09.8]} 10... bxc6 {[%clk 0:03:12]} 11. b3 {[%clk
0:03:08.6]} 11... Bf5 {[%clk 0:03:08.2]} 12. Bb2 {[%clk 0:03:09.5]} 12... Bxc2
{[%clk 0:03:06.6]} 13. Ba6 {[%clk 0:03:10.3]} 13... Rd8 {[%clk 0:02:46.2]} 14.
O-O {[%clk 0:03:04.6]} 14... Bh6 {[%clk 0:02:46.4]} 15. Rfe1 {[%clk 0:03:00.7]}
15... O-O {[%clk 0:02:42.2]} 16. Rxe7 {[%clk 0:03:00.1]} 16... Nd5 {[%clk
0:02:43.7]} 17. Rxa7 {[%clk 0:02:55.9]} 17... Rfe8 {[%clk 0:02:37.9]} 18. Bc4
{[%clk 0:02:47.8]} 18... Bf4 {[%clk 0:01:51.9]} 19. g3 {[%clk 0:02:35.8]} 19...
Bb8 {[%clk 0:01:41.1]} 20. Rb7 {[%clk 0:02:32]} 20... Be4 {[%clk 0:01:41.5]} 21.
Nc3 {[%clk 0:02:24.8]} 21... Bf3 {[%clk 0:01:39.3]} 22. h4 {[%clk 0:02:00.1]}
22... Be5 {[%clk 0:01:38.5]} 23. Rc1 {[%clk 0:01:37]} 23... Re7 {[%clk 0:01:32]}
24. Rxe7 {[%clk 0:01:28.4]} 24... Nxe7 {[%clk 0:01:33.9]} 25. Re1 {[%clk
0:01:05.9]} 25... Bf6 {[%clk 0:01:28.6]} 26. a4 {[%clk 0:00:58.5]} 26... Rd2
{[%clk 0:01:27.6]} 27. Ba1 {[%clk 0:00:46.7]} 27... Nf5 {[%clk 0:01:12.1]} 28.
Nb1 {[%clk 0:00:43]} 28... Rd6 {[%clk 0:00:59.3]} 29. Bxf6 {[%clk 0:00:43.5]}
29... Rxf6 {[%clk 0:01:01.2]} 30. Nd2 {[%clk 0:00:43.8]} 30... Nd4 {[%clk
0:00:59.8]} 31. Re7 {[%clk 0:00:39.1]} 31... Bd1 {[%clk 0:00:54.8]} 32. f4
{[%clk 0:00:38.6]} 32... c5 {[%clk 0:00:51.4]} 33. Ne4 {[%clk 0:00:39.5]} 33...
Rb6 {[%clk 0:00:42]} 34. Rxf7 {[%clk 0:00:35.7]} 34... Bxb3 {[%clk 0:00:40.8]}
35. Rb7+ {[%clk 0:00:23.7]} 35... Bxc4 {[%clk 0:00:40.6]} 36. Rxb6 {[%clk
0:00:24.5]} 36... Bd5 {[%clk 0:00:35.7]} 37. Nf6+ {[%clk 0:00:22.7]} 1-0

[Event "*** Titled Tuesday 3|2 Blitz"]
[Site "Chess.com"]
[Date "2017.05.02"]
[Round "7"]
[White "David_Klein"]
[Black "RitvarsReimanis"]
[Result "0-1"]
[WhiteElo "2494"]
[BlackElo "2447"]
[TimeControl "180+2"]
[EndTime "14:33:49 PDT"]
[Termination "RitvarsReimanis won by resignation"]

1. e4 {[%clk 0:03:01.9]} 1... c5 {[%clk 0:03:00.4]} 2. Nf3 {[%clk 0:03:02.2]}
2... Nc6 {[%clk 0:03:01.9]} 3. Bb5 {[%clk 0:03:02.6]} 3... g6 {[%clk 0:03:03.3]}
4. O-O {[%clk 0:03:03.2]} 4... Bg7 {[%clk 0:03:04]} 5. Re1 {[%clk 0:03:04.4]}
5... Nh6 {[%clk 0:03:05.1]} 6. h3 {[%clk 0:03:01]} 6... f6 {[%clk 0:03:05.7]} 7.
c3 {[%clk 0:03:01.1]} 7... Nf7 {[%clk 0:03:06.6]} 8. d4 {[%clk 0:03:02.4]} 8...
cxd4 {[%clk 0:03:08.1]} 9. cxd4 {[%clk 0:03:03.7]} 9... O-O {[%clk 0:03:09.8]}
10. Nc3 {[%clk 0:03:04.7]} 10... a6 {[%clk 0:03:09.5]} 11. Bf1 {[%clk
0:02:59.4]} 11... d6 {[%clk 0:03:08.4]} 12. Be3 {[%clk 0:02:58.1]} 12... Qa5
{[%clk 0:03:04.1]} 13. d5 {[%clk 0:02:48.6]} 13... Nce5 {[%clk 0:03:02.9]} 14.
Nd4 {[%clk 0:02:50.2]} 14... g5 {[%clk 0:02:56.8]} 15. Rc1 {[%clk 0:02:42.5]}
15... Bd7 {[%clk 0:02:57.4]} 16. Ne6 {[%clk 0:02:31.9]} 16... Rfc8 {[%clk
0:02:54.4]} 17. f4 {[%clk 0:02:17.5]} 17... gxf4 {[%clk 0:02:53.1]} 18. Nxf4
{[%clk 0:02:18.4]} 18... Nc4 {[%clk 0:02:44.4]} 19. Bxc4 {[%clk 0:02:15.6]}
19... Rxc4 {[%clk 0:02:46.3]} 20. Ne6 {[%clk 0:02:11.9]} 20... Ne5 {[%clk
0:02:29.2]} 21. Bd4 {[%clk 0:02:02]} 21... Ng6 {[%clk 0:02:25.5]} 22. b3 {[%clk
0:01:47.9]} 22... Rcc8 {[%clk 0:02:12.3]} 23. Kh1 {[%clk 0:01:48.7]} 23... Bh6
{[%clk 0:02:05.5]} 24. Rc2 {[%clk 0:01:48.9]} 24... b5 {[%clk 0:01:57.8]} 25.
Qh5 {[%clk 0:01:10.4]} 25... Bg7 {[%clk 0:01:58.5]} 26. Rec1 {[%clk 0:00:47.4]}
26... b4 {[%clk 0:01:58.6]} 27. Nd1 {[%clk 0:00:43.2]} 27... Rxc2 {[%clk
0:01:58.3]} 28. Rxc2 {[%clk 0:00:42.4]} 28... Bxe6 {[%clk 0:01:58.4]} 29. Ne3
{[%clk 0:00:39.5]} 29... Rc8 {[%clk 0:01:52.4]} 30. dxe6 {[%clk 0:00:30.1]}
30... Qxh5 {[%clk 0:01:47.6]} 31. Rxc8+ {[%clk 0:00:30.7]} 31... Bf8 {[%clk
0:01:43.6]} 32. Nf5 {[%clk 0:00:32.1]} 32... h6 {[%clk 0:01:10.3]} 33. Kh2
{[%clk 0:00:23.5]} 33... Qe2 {[%clk 0:01:08.8]} 34. Be3 {[%clk 0:00:20.7]} 34...
Kh7 {[%clk 0:01:05.5]} 35. Kg3 {[%clk 0:00:16.7]} 35... Qxa2 {[%clk 0:00:52.1]}
36. Kf3 {[%clk 0:00:15.9]} 36... h5 {[%clk 0:00:50.6]} 37. g4 {[%clk 0:00:11.9]}
37... hxg4+ {[%clk 0:00:48.7]} 38. Kxg4 {[%clk 0:00:12.8]} 38... Qg2+ {[%clk
0:00:46.1]} 39. Kh5 {[%clk 0:00:13.1]} 39... Qxh3+ {[%clk 0:00:43.5]} 0-1

[Event "*** Titled Tuesday 3|2 Blitz"]
[Site "Chess.com"]
[Date "2017.05.02"]
[Round "7"]
[White "Wolverine_master"]
[Black "politeplayer"]
[Result "1/2-1/2"]
[WhiteElo "1945"]
[BlackElo "2065"]
[TimeControl "180+2"]
[EndTime "14:33:50 PDT"]
[Termination "Game drawn by agreement"]

1. Nf3 {[%clk 0:03:02]} 1... d5 {[%clk 0:02:55.9]} 2. g3 {[%clk 0:03:02.7]} 2...
e6 {[%clk 0:02:56.7]} 3. Bg2 {[%clk 0:03:04.2]} 3... Nf6 {[%clk 0:02:57.8]} 4.
d4 {[%clk 0:03:05.8]} 4... Be7 {[%clk 0:02:58.7]} 5. O-O {[%clk 0:03:07.5]} 5...
O-O {[%clk 0:02:59.8]} 6. c4 {[%clk 0:03:09.2]} 6... c5 {[%clk 0:02:59.8]} 7.
Qc2 {[%clk 0:03:09.4]} 7... cxd4 {[%clk 0:02:57.6]} 8. Nxd4 {[%clk 0:03:09.6]}
8... e5 {[%clk 0:02:59.2]} 9. Nf5 {[%clk 0:03:08.1]} 9... Bxf5 {[%clk
0:02:54.9]} 10. Qxf5 {[%clk 0:03:08.3]} 10... Nc6 {[%clk 0:02:49.4]} 11. cxd5
{[%clk 0:03:07.7]} 11... Nd4 {[%clk 0:02:49.9]} 12. Qd3 {[%clk 0:03:05.3]} 12...
Nxd5 {[%clk 0:02:47.4]} 13. a3 {[%clk 0:02:57.7]} 13... Rc8 {[%clk 0:02:30]} 14.
Nc3 {[%clk 0:02:49.5]} 14... Nxc3 {[%clk 0:02:23.7]} 15. bxc3 {[%clk 0:02:49.8]}
15... Rxc3 {[%clk 0:02:25.2]} 16. Qd1 {[%clk 0:02:42.9]} 16... Qb6 {[%clk
0:02:12.7]} 17. Be3 {[%clk 0:02:21.6]} 17... Rd8 {[%clk 0:02:08.9]} 18. Bxd4
{[%clk 0:02:15.7]} 18... Rxd4 {[%clk 0:02:02.2]} 19. Qb1 {[%clk 0:02:14.8]}
19... Qxb1 {[%clk 0:02:02.2]} 20. Rfxb1 {[%clk 0:02:14]} 20... Rxa3 {[%clk
0:02:01.2]} 21. Rxa3 {[%clk 0:02:05.9]} 21... Bxa3 {[%clk 0:02:01.7]} 22. Rxb7
{[%clk 0:02:06.3]} 22... Rd1+ {[%clk 0:02:01.8]} 23. Bf1 {[%clk 0:02:07.1]}
23... Bc5 {[%clk 0:01:49.6]} 24. Rc7 {[%clk 0:01:45]} 24... Bb6 {[%clk
0:01:36.9]} 25. Rc8+ {[%clk 0:01:28.5]} 25... Rd8 {[%clk 0:01:38]} 26. Rxd8+
{[%clk 0:01:22.7]} 26... Bxd8 {[%clk 0:01:38.4]} 27. e4 {[%clk 0:01:22.6]} 27...
Kf8 {[%clk 0:01:36.4]} 28. Bc4 {[%clk 0:01:22.6]} 28... Ke7 {[%clk 0:01:36.8]}
29. Kf1 {[%clk 0:01:24.2]} 29... f6 {[%clk 0:01:38.2]} 30. Ke2 {[%clk
0:01:25.5]} 30... Kd6 {[%clk 0:01:39.6]} 31. Kd3 {[%clk 0:01:26.9]} 31... Kc5
{[%clk 0:01:40.8]} 32. Bg8 {[%clk 0:01:22.1]} 32... h6 {[%clk 0:01:41]} 33. f4
{[%clk 0:01:20.3]} 33... exf4 {[%clk 0:01:39.1]} 34. gxf4 {[%clk 0:01:21.4]}
34... Bc7 {[%clk 0:01:40.6]} 35. Ke3 {[%clk 0:01:17.3]} 35... a5 {[%clk
0:01:41.1]} 36. h4 {[%clk 0:01:16.8]} 36... a4 {[%clk 0:01:40.3]} 37. f5 {[%clk
0:01:12.7]} 37... Kb4 {[%clk 0:01:40.5]} 38. Kd3 {[%clk 0:01:13.5]} 38... h5
{[%clk 0:01:34.1]} 39. Kc2 {[%clk 0:01:12.3]} 39... Bg3 {[%clk 0:01:33]} 40. Bf7
{[%clk 0:01:06.2]} 40... Bxh4 {[%clk 0:01:33.2]} 41. Bxh5 {[%clk 0:01:06.6]}
41... Kc4 {[%clk 0:01:28.4]} 42. Bf7+ {[%clk 0:01:02.2]} 42... Kd4 {[%clk
0:01:29.4]} 43. Bd5 {[%clk 0:01:03.7]} 43... Ke5 {[%clk 0:01:30.4]} 44. Kb2
{[%clk 0:01:03.6]} 44... Bf2 {[%clk 0:01:06.4]} 45. Ka3 {[%clk 0:01:03.6]} 45...
Bc5+ {[%clk 0:01:05.7]} 46. Kxa4 {[%clk 0:01:04.2]} 46... Kf4 {[%clk 0:01:06.6]}
47. Kb5 {[%clk 0:01:04.8]} 47... Bd4 {[%clk 0:01:07.3]} 48. Kc6 {[%clk
0:01:03.4]} 48... Be5 {[%clk 0:01:07.6]} 49. Kd7 {[%clk 0:01:03.8]} 49... Kg5
{[%clk 0:01:09]} 50. Ke8 {[%clk 0:01:04.4]} 50... g6 {[%clk 0:01:09.8]} 51. fxg6
{[%clk 0:00:59.6]} 51... Kxg6 {[%clk 0:01:10.7]} 52. Ke7 {[%clk 0:01:00.5]}
52... Kg5 {[%clk 0:01:12.2]} 53. Ke6 {[%clk 0:01:00]} 53... Kf4 {[%clk
0:01:13.6]} 54. Bc6 {[%clk 0:01:00.4]} 54... Kg5 {[%clk 0:01:15]} 55. Bd5 {[%clk
0:01:01.4]} 55... Kf4 {[%clk 0:01:16.5]} 56. Bc6 {[%clk 0:01:02.8]} 56... Kf3
{[%clk 0:01:17.7]} 57. Kf5 {[%clk 0:01:03.5]} 57... Ke3 {[%clk 0:01:19.3]} 58.
Ba8 {[%clk 0:01:04.4]} 58... Kd4 {[%clk 0:01:20.8]} 59. Bd5 {[%clk 0:01:05.9]}
59... Kc5 {[%clk 0:01:22.3]} 60. Ba8 {[%clk 0:01:07.5]} 60... Kd4 {[%clk
0:01:23.8]} 61. Bd5 {[%clk 0:01:08.9]} 61... Ke3 {[%clk 0:01:25.3]} 62. Ba8
{[%clk 0:01:09.4]} 1/2-1/2

[Event "*** Titled Tuesday 3|2 Blitz"]
[Site "Chess.com"]
[Date "2017.05.02"]
[Round "7"]
[White "Rikikits"]
[Black "PaulfromSPb"]
[Result "1/2-1/2"]
[WhiteElo "2576"]
[BlackElo "2571"]
[TimeControl "180+2"]
[EndTime "14:34:10 PDT"]
[Termination "Game drawn by agreement"]

1. e4 {[%clk 0:03:02]} 1... c5 {[%clk 0:03:00.6]} 2. Nf3 {[%clk 0:03:02.3]} 2...
d6 {[%clk 0:03:00.9]} 3. d4 {[%clk 0:03:01.4]} 3... cxd4 {[%clk 0:03:01.9]} 4.
Nxd4 {[%clk 0:03:03.3]} 4... Nf6 {[%clk 0:03:02.7]} 5. Nc3 {[%clk 0:03:03.4]}
5... e5 {[%clk 0:03:03.6]} 6. Bb5+ {[%clk 0:03:03.4]} 6... Nbd7 {[%clk 0:03:04]}
7. Nf5 {[%clk 0:03:04.1]} 7... Qc7 {[%clk 0:03:04.7]} 8. O-O {[%clk 0:03:03.6]}
8... a6 {[%clk 0:03:05.4]} 9. Ba4 {[%clk 0:03:04.7]} 9... b5 {[%clk 0:03:05.9]}
10. Bb3 {[%clk 0:03:06]} 10... Nc5 {[%clk 0:03:07.2]} 11. Ne3 {[%clk 0:02:44.5]}
11... Nxb3 {[%clk 0:02:56.4]} 12. cxb3 {[%clk 0:02:40.8]} 12... Bb7 {[%clk
0:02:56.5]} 13. Ned5 {[%clk 0:02:41.9]} 13... Nxd5 {[%clk 0:02:56.6]} 14. Nxd5
{[%clk 0:02:43.3]} 14... Bxd5 {[%clk 0:02:55.1]} 15. Qxd5 {[%clk 0:02:43.8]}
15... Rc8 {[%clk 0:02:50.2]} 16. a4 {[%clk 0:02:43]} 16... bxa4 {[%clk
0:02:43.1]} 17. Be3 {[%clk 0:02:39.9]} 17... Qc6 {[%clk 0:02:39.4]} 18. Rxa4
{[%clk 0:01:39.1]} 18... Be7 {[%clk 0:02:36.7]} 19. Rfa1 {[%clk 0:01:03.6]}
19... O-O {[%clk 0:02:34]} 20. Qxc6 {[%clk 0:01:03.3]} 20... Rxc6 {[%clk
0:02:34.4]} 21. Rxa6 {[%clk 0:01:04.9]} 21... Rc2 {[%clk 0:02:32.7]} 22. R1a2
{[%clk 0:01:03.3]} 22... Rb8 {[%clk 0:02:29.9]} 23. Ra8 {[%clk 0:01:01.4]} 23...
Rxa8 {[%clk 0:02:30.5]} 24. Rxa8+ {[%clk 0:01:03.3]} 24... Bf8 {[%clk
0:02:31.7]} 25. Ra2 {[%clk 0:01:00.8]} 25... f5 {[%clk 0:02:28.6]} 26. g3 {[%clk
0:00:52.8]} 26... fxe4 {[%clk 0:02:26.5]} 27. b4 {[%clk 0:00:53.7]} 27... d5
{[%clk 0:02:27]} 28. b5 {[%clk 0:00:55.1]} 28... d4 {[%clk 0:02:28]} 29. Bg5
{[%clk 0:00:47.2]} 29... Rc7 {[%clk 0:02:16.2]} 30. b6 {[%clk 0:00:36.6]} 30...
Rb7 {[%clk 0:02:16.7]} 31. Bd8 {[%clk 0:00:37.7]} 31... Bc5 {[%clk 0:02:15.2]}
32. Ra5 {[%clk 0:00:38.8]} 32... Bxb6 {[%clk 0:02:08.4]} 33. Rb5 {[%clk
0:00:39.6]} 33... d3 {[%clk 0:02:05.2]} 34. Bxb6 {[%clk 0:00:36.1]} 34... d2
{[%clk 0:01:51.9]} 35. Rd5 {[%clk 0:00:36]} 35... Rxb6 {[%clk 0:01:51.1]} 36.
Rxd2 {[%clk 0:00:37.4]} 36... Kf7 {[%clk 0:01:50.5]} 37. Kf1 {[%clk 0:00:38.6]}
37... Rb3 {[%clk 0:01:49.4]} 38. Ke2 {[%clk 0:00:39.1]} 38... Ke6 {[%clk
0:01:49.8]} 39. Rc2 {[%clk 0:00:39.3]} 39... h5 {[%clk 0:01:49.3]} 40. h3 {[%clk
0:00:40.2]} 40... g5 {[%clk 0:01:50]} 41. Rd2 {[%clk 0:00:40.3]} 41... h4 {[%clk
0:01:50.9]} 42. gxh4 {[%clk 0:00:37.4]} 42... gxh4 {[%clk 0:01:51.9]} 43. Rd8
{[%clk 0:00:38.9]} 43... Rxh3 {[%clk 0:01:44.4]} 44. Re8+ {[%clk 0:00:40]} 44...
Kd5 {[%clk 0:01:45.4]} 45. Rd8+ {[%clk 0:00:40.8]} 45... Kc5 {[%clk 0:01:46.4]}
46. Rc8+ {[%clk 0:00:40.7]} 46... Kd4 {[%clk 0:01:47.5]} 47. Rd8+ {[%clk
0:00:41.8]} 47... Kc4 {[%clk 0:01:48.5]} 48. Rc8+ {[%clk 0:00:43.1]} 48... Kb3
{[%clk 0:01:33.9]} 49. Re8 {[%clk 0:00:43]} 49... Kc4 {[%clk 0:01:32.5]} 50.
Rxe5 {[%clk 0:00:43]} 50... Kd4 {[%clk 0:01:33.3]} 51. Rh5 {[%clk 0:00:44]}
51... Rb3 {[%clk 0:01:22.1]} 52. Rxh4 {[%clk 0:00:41.9]} 52... Rxb2+ {[%clk
0:01:23.3]} 53. Kf1 {[%clk 0:00:43]} 53... Ke5 {[%clk 0:01:23.7]} 54. Rh8 {[%clk
0:00:40.7]} 54... Kf4 {[%clk 0:01:24.2]} 55. Rf8+ {[%clk 0:00:41.4]} 55... Ke5
{[%clk 0:01:25.3]} 56. Re8+ {[%clk 0:00:42.3]} 56... Kd4 {[%clk 0:01:26.4]} 57.
Rd8+ {[%clk 0:00:43.7]} 57... Ke5 {[%clk 0:01:27]} 58. Re8+ {[%clk 0:00:44.9]}
58... Kf4 {[%clk 0:01:27.9]} 1/2-1/2

[Event "*** Titled Tuesday 3|2 Blitz"]
[Site "Chess.com"]
[Date "2017.05.02"]
[Round "7"]
[White "hypert"]
[Black "IIIlllII1llIl"]
[Result "1-0"]
[WhiteElo "2307"]
[BlackElo "2528"]
[TimeControl "180+2"]
[EndTime "14:34:10 PDT"]
[Termination "hypert won by checkmate"]

1. e4 {[%clk 0:03:02]} 1... b6 {[%clk 0:02:59.8]} 2. d4 {[%clk 0:03:01]} 2...
Bb7 {[%clk 0:03:01]} 3. Nc3 {[%clk 0:03:02.6]} 3... e6 {[%clk 0:03:02]} 4. Nf3
{[%clk 0:03:01.2]} 4... Bb4 {[%clk 0:03:02.7]} 5. Bd3 {[%clk 0:03:00.8]} 5...
Nf6 {[%clk 0:03:02.2]} 6. e5 {[%clk 0:03:00.5]} 6... Ne4 {[%clk 0:02:57.6]} 7.
Bd2 {[%clk 0:02:56.4]} 7... Bxc3 {[%clk 0:02:55.2]} 8. bxc3 {[%clk 0:02:48.5]}
8... d6 {[%clk 0:02:45.5]} 9. exd6 {[%clk 0:02:38.5]} 9... cxd6 {[%clk
0:02:44.1]} 10. O-O {[%clk 0:02:34.9]} 10... Nd7 {[%clk 0:02:41.6]} 11. Re1
{[%clk 0:02:35.5]} 11... Nxd2 {[%clk 0:02:35.9]} 12. Nxd2 {[%clk 0:02:32.7]}
12... O-O {[%clk 0:02:30.2]} 13. Ne4 {[%clk 0:02:23.5]} 13... Nf6 {[%clk
0:02:28.2]} 14. a4 {[%clk 0:02:08.7]} 14... Rc8 {[%clk 0:01:47.5]} 15. a5 {[%clk
0:01:44.4]} 15... Bxe4 {[%clk 0:01:39.8]} 16. Bxe4 {[%clk 0:01:42.9]} 16... Nxe4
{[%clk 0:01:40.8]} 17. Rxe4 {[%clk 0:01:43.3]} 17... Rxc3 {[%clk 0:01:41.6]} 18.
axb6 {[%clk 0:01:40.8]} 18... axb6 {[%clk 0:01:35.1]} 19. d5 {[%clk 0:01:41.7]}
19... e5 {[%clk 0:01:25]} 20. Rb4 {[%clk 0:01:39.4]} 20... Qc7 {[%clk
0:01:23.9]} 21. Rab1 {[%clk 0:01:38.6]} 21... Rb8 {[%clk 0:00:50]} 22. R1b2
{[%clk 0:01:38]} 22... g6 {[%clk 0:00:48.2]} 23. g3 {[%clk 0:01:37.7]} 23... Rc5
{[%clk 0:00:30.4]} 24. Qd3 {[%clk 0:01:25.1]} 24... Kg7 {[%clk 0:00:29.7]} 25.
c4 {[%clk 0:01:24.8]} 25... Qd8 {[%clk 0:00:20.1]} 26. h4 {[%clk 0:01:23.7]}
26... Qf6 {[%clk 0:00:20.2]} 27. Rxb6 {[%clk 0:01:14.8]} 27... Rbc8 {[%clk
0:00:18.6]} 28. Rc2 {[%clk 0:01:09.1]} 28... Ra8 {[%clk 0:00:08.6]} 29. Rb1
{[%clk 0:01:05.1]} 29... h5 {[%clk 0:00:06.2]} 30. Kg2 {[%clk 0:01:05]} 30...
Rac8 {[%clk 0:00:06.1]} 31. f4 {[%clk 0:00:48.6]} 31... exf4 {[%clk 0:00:06.2]}
32. Rf1 {[%clk 0:00:49.5]} 32... Qe5 {[%clk 0:00:03.5]} 33. Rxf4 {[%clk
0:00:49.2]} 33... Re8 {[%clk 0:00:04.7]} 34. Rcf2 {[%clk 0:00:48.4]} 34... f5
{[%clk 0:00:05.9]} 35. Ra2 {[%clk 0:00:41.4]} 35... Re7 {[%clk 0:00:06.7]} 36.
Rff2 {[%clk 0:00:32.6]} 36... Qe4+ {[%clk 0:00:06.6]} 37. Qxe4 {[%clk
0:00:32.6]} 37... Rxe4 {[%clk 0:00:08.5]} 38. Ra6 {[%clk 0:00:33.3]} 38... Rcxc4
{[%clk 0:00:08.5]} 39. Rxd6 {[%clk 0:00:34]} 39... Rcd4 {[%clk 0:00:09.8]} 40.
Ra2 {[%clk 0:00:33.7]} 40... Re3 {[%clk 0:00:08.9]} 41. Ra7+ {[%clk 0:00:34.4]}
41... Kf8 {[%clk 0:00:09.7]} 42. Rd8+ {[%clk 0:00:33.3]} 42... Re8 {[%clk
0:00:10.4]} 43. Rdd7 {[%clk 0:00:33.4]} 43... Re2+ {[%clk 0:00:11.4]} 44. Kf3
{[%clk 0:00:32.5]} 44... Red2 {[%clk 0:00:12.3]} 45. Rd8# {[%clk 0:00:33.1]} 1-0

[Event "*** Titled Tuesday 3|2 Blitz"]
[Site "Chess.com"]
[Date "2017.05.02"]
[Round "7"]
[White "Schemato"]
[Black "Abdodi"]
[Result "1-0"]
[WhiteElo "2296"]
[BlackElo "2060"]
[TimeControl "180+2"]
[EndTime "14:34:10 PDT"]
[Termination "Schemato won by resignation"]

1. c4 {[%clk 0:03:02]} 1... Nf6 {[%clk 0:02:58.5]} 2. Nc3 {[%clk 0:03:02.5]}
2... d5 {[%clk 0:02:58.8]} 3. cxd5 {[%clk 0:03:03]} 3... Nxd5 {[%clk 0:02:59.3]}
4. g3 {[%clk 0:03:04.2]} 4... c5 {[%clk 0:02:52.6]} 5. Bg2 {[%clk 0:03:05.1]}
5... e6 {[%clk 0:02:53.3]} 6. Nf3 {[%clk 0:03:04.9]} 6... Nc6 {[%clk 0:02:52.5]}
7. O-O {[%clk 0:03:05.6]} 7... Be7 {[%clk 0:02:53]} 8. Nxd5 {[%clk 0:03:05.9]}
8... exd5 {[%clk 0:02:53.3]} 9. d4 {[%clk 0:03:07]} 9... b6 {[%clk 0:02:42]} 10.
b3 {[%clk 0:02:54.7]} 10... O-O {[%clk 0:02:41.6]} 11. Bb2 {[%clk 0:02:55.3]}
11... Ba6 {[%clk 0:02:35.6]} 12. Qd2 {[%clk 0:02:51.5]} 12... Rc8 {[%clk
0:02:33.2]} 13. dxc5 {[%clk 0:02:49.1]} 13... bxc5 {[%clk 0:02:31.7]} 14. Rfd1
{[%clk 0:02:47.9]} 14... Bf6 {[%clk 0:02:26.6]} 15. Bxf6 {[%clk 0:02:46.2]}
15... Qxf6 {[%clk 0:02:27]} 16. e3 {[%clk 0:02:33.3]} 16... Rfd8 {[%clk
0:02:25.5]} 17. Rac1 {[%clk 0:02:31.4]} 17... Nb4 {[%clk 0:02:19.6]} 18. a3
{[%clk 0:02:15.8]} 18... Nd3 {[%clk 0:02:17.3]} 19. Rc3 {[%clk 0:02:16.2]} 19...
Ne5 {[%clk 0:01:44]} 20. Nxe5 {[%clk 0:02:13.1]} 20... Qxe5 {[%clk 0:01:44.5]}
21. Bxd5 {[%clk 0:01:55.1]} 21... Kf8 {[%clk 0:01:30.5]} 22. e4 {[%clk
0:01:53.3]} 22... f5 {[%clk 0:01:20.8]} 23. Rf3 {[%clk 0:01:53.2]} 23... g6
{[%clk 0:01:17.6]} 24. Qh6+ {[%clk 0:01:49.1]} 24... Qg7 {[%clk 0:01:17.3]} 25.
Qe3 {[%clk 0:01:30.5]} 25... Bb7 {[%clk 0:01:10.5]} 26. Rd3 {[%clk 0:01:02.9]}
26... Bxd5 {[%clk 0:00:58.6]} 27. Rxd5 {[%clk 0:00:57.4]} 27... Rxd5 {[%clk
0:00:52.2]} 28. exd5 {[%clk 0:00:58.1]} 28... Qd4 {[%clk 0:00:37.2]} 29. Qe6
{[%clk 0:00:43.9]} 29... Re8 {[%clk 0:00:37]} 30. Qd6+ {[%clk 0:00:38.6]} 30...
Kf7 {[%clk 0:00:36.7]} 31. Kg2 {[%clk 0:00:39.7]} 31... Re5 {[%clk 0:00:25.6]}
32. Qc7+ {[%clk 0:00:34]} 32... Kg8 {[%clk 0:00:25.2]} 33. d6 {[%clk 0:00:32.7]}
33... Rd5 {[%clk 0:00:12.6]} 34. Re3 {[%clk 0:00:32.6]} 34... Re5 {[%clk
0:00:13.2]} 35. d7 {[%clk 0:00:22.9]} 35... Rxe3 {[%clk 0:00:06.7]} 36. d8=Q+
{[%clk 0:00:21.6]} 1-0